[Event "Early-Titled-Tuesday-Blitz-August-29-2023"]
[Site "Chess.com"]
[Date "2023.08.29"]
[Round "9"]
[White "Apocalyps999"]
[Black "Tsyhanchuk_Stanislav"]
[Result "1-0"]
[WhiteElo "2330"]
[BlackElo "2414"]
[TimeControl "180+1"]
[EndTime "9:43:37 PDT"]
[Termination "Apocalyps999 won by checkmate"]

1. e4 {[%clk 0:03:00.9]} 1... c5 {[%clk 0:02:58.9]} 2. c3 {[%clk 0:02:58.9]}
2... e6 {[%clk 0:02:58.6]} 3. d4 {[%clk 0:02:58.1]} 3... d5 {[%clk 0:02:59]} 4.
exd5 {[%clk 0:02:55.7]} 4... exd5 {[%clk 0:02:59.9]} 5. Nf3 {[%clk 0:02:54.1]}
5... Nc6 {[%clk 0:03:00.2]} 6. Bb5 {[%clk 0:02:44.5]} 6... Nf6 {[%clk
0:03:00.5]} 7. O-O {[%clk 0:02:43.7]} 7... Be7 {[%clk 0:02:57]} 8. dxc5 {[%clk
0:02:40.9]} 8... Bxc5 {[%clk 0:02:57.9]} 9. Re1+ {[%clk 0:02:38.6]} 9... Be6
{[%clk 0:02:58.1]} 10. Nd4 {[%clk 0:02:29.8]} 10... O-O {[%clk 0:02:45.2]} 11.
Bxc6 {[%clk 0:01:50.1]} 11... Bxd4 {[%clk 0:02:35.9]} 12. Qxd4 {[%clk
0:01:40.9]} 12... bxc6 {[%clk 0:02:35.8]} 13. Bg5 {[%clk 0:01:39.7]} 13... h6
{[%clk 0:02:28.5]} 14. Bh4 {[%clk 0:01:37.3]} 14... g5 {[%clk 0:02:23.8]} 15.
Bg3 {[%clk 0:01:36.8]} 15... Ne4 {[%clk 0:02:17.5]} 16. f3 {[%clk 0:01:25.3]}
16... Nxg3 {[%clk 0:02:00.5]} 17. hxg3 {[%clk 0:01:23.5]} 17... Qd6 {[%clk
0:01:54.8]} 18. f4 {[%clk 0:01:20.9]} 18... f6 {[%clk 0:01:48.8]} 19. Nd2 {[%clk
0:01:11.2]} 19... c5 {[%clk 0:01:38.5]} 20. Qd3 {[%clk 0:00:55.4]} 20... Bf7
{[%clk 0:01:27.1]} 21. Ne4 {[%clk 0:00:40.7]} 21... Qb6 {[%clk 0:01:07.4]} 22.
Nf2 {[%clk 0:00:38.4]} 22... Kg7 {[%clk 0:01:03.5]} 23. b3 {[%clk 0:00:34.6]}
23... Rfe8 {[%clk 0:01:02.5]} 24. Qf3 {[%clk 0:00:21.3]} 24... c4 {[%clk
0:00:52.9]} 25. b4 {[%clk 0:00:19.9]} 25... d4 {[%clk 0:00:51.4]} 26. cxd4
{[%clk 0:00:19.6]} 26... Qxd4 {[%clk 0:00:52.3]} 27. Kh2 {[%clk 0:00:18.1]}
27... c3 {[%clk 0:00:44]} 28. Red1 {[%clk 0:00:16.4]} 28... Qxb4 {[%clk
0:00:41.7]} 29. Rab1 {[%clk 0:00:15.3]} 29... Qc4 {[%clk 0:00:39]} 30. Rbc1
{[%clk 0:00:15.6]} 30... Rac8 {[%clk 0:00:37.6]} 31. Rd7 {[%clk 0:00:15.4]}
31... c2 {[%clk 0:00:34.2]} 32. Ng4 {[%clk 0:00:13.6]} 32... h5 {[%clk
0:00:30.7]} 33. fxg5 {[%clk 0:00:13.1]} 33... hxg4 {[%clk 0:00:25.6]} 34. Qxf6+
{[%clk 0:00:13.6]} 34... Kg8 {[%clk 0:00:20.2]} 35. g6 {[%clk 0:00:13.9]} 35...
Rf8 {[%clk 0:00:15.6]} 36. gxf7+ {[%clk 0:00:13.8]} 36... Rxf7 {[%clk
0:00:16.5]} 37. Qg6+ {[%clk 0:00:13.8]} 37... Kf8 {[%clk 0:00:16.5]} 38. Qd6+
{[%clk 0:00:11.6]} 38... Kg8 {[%clk 0:00:15.6]} 39. Qg6+ {[%clk 0:00:11.6]}
39... Kf8 {[%clk 0:00:15.3]} 40. Qh6+ {[%clk 0:00:11.6]} 40... Ke8 {[%clk
0:00:14.7]} 41. Rxf7 {[%clk 0:00:10.1]} 41... Qxf7 {[%clk 0:00:13.5]} 42. Re1+
{[%clk 0:00:09.6]} 42... Kd7 {[%clk 0:00:13.6]} 43. Qd2+ {[%clk 0:00:08.4]}
43... Kc7 {[%clk 0:00:11.6]} 44. Qxc2+ {[%clk 0:00:09]} 44... Kb7 {[%clk
0:00:09.2]} 45. Rb1+ {[%clk 0:00:09.6]} 45... Ka6 {[%clk 0:00:08.7]} 46. Qa4#
{[%clk 0:00:09.5]} 1-0

[Event "Early-Titled-Tuesday-Blitz-August-29-2023"]
[Site "Chess.com"]
[Date "2023.08.29"]
[Round "9"]
[White "Arteler"]
[Black "jcreyes69"]
[Result "1-0"]
[WhiteElo "2238"]
[BlackElo "2369"]
[TimeControl "180+1"]
[EndTime "9:43:38 PDT"]
[Termination "Arteler won by checkmate"]

1. e4 {[%clk 0:02:55]} 1... c6 {[%clk 0:02:54.1]} 2. Nc3 {[%clk 0:02:54.9]} 2...
d5 {[%clk 0:02:54.2]} 3. Qf3 {[%clk 0:02:55.6]} 3... dxe4 {[%clk 0:02:45.8]} 4.
Nxe4 {[%clk 0:02:56.5]} 4... Nf6 {[%clk 0:02:46]} 5. Bc4 {[%clk 0:02:56.6]} 5...
e6 {[%clk 0:02:37.8]} 6. Ne2 {[%clk 0:02:54.1]} 6... Nbd7 {[%clk 0:02:32.3]} 7.
d4 {[%clk 0:02:54.2]} 7... Nxe4 {[%clk 0:02:30.9]} 8. Qxe4 {[%clk 0:02:55.1]}
8... Nf6 {[%clk 0:02:31.6]} 9. Qf3 {[%clk 0:02:51.2]} 9... Bd6 {[%clk
0:02:28.5]} 10. c3 {[%clk 0:02:39]} 10... h6 {[%clk 0:02:25.4]} 11. h4 {[%clk
0:02:37.4]} 11... Qe7 {[%clk 0:02:19]} 12. Be3 {[%clk 0:02:30.2]} 12... Bd7
{[%clk 0:02:19]} 13. O-O-O {[%clk 0:02:21.4]} 13... O-O-O {[%clk 0:02:18.6]} 14.
g4 {[%clk 0:02:21.4]} 14... e5 {[%clk 0:02:17.1]} 15. g5 {[%clk 0:02:21.3]}
15... hxg5 {[%clk 0:02:15.1]} 16. hxg5 {[%clk 0:02:22.2]} 16... Rxh1 {[%clk
0:02:09]} 17. Rxh1 {[%clk 0:02:19.7]} 17... Ng4 {[%clk 0:02:06]} 18. Bd2 {[%clk
0:01:35]} 18... exd4 {[%clk 0:02:05]} 19. Nxd4 {[%clk 0:01:34.7]} 19... Ne5
{[%clk 0:02:04.4]} 20. Qe2 {[%clk 0:01:30.8]} 20... Bg4 {[%clk 0:01:45.7]} 21.
f3 {[%clk 0:01:29.4]} 21... Nxc4 {[%clk 0:01:40.7]} 22. Qxc4 {[%clk 0:01:28.4]}
22... Bd7 {[%clk 0:01:26.6]} 23. Re1 {[%clk 0:01:28.2]} 23... Qf8 {[%clk
0:01:26.4]} 24. Nb5 {[%clk 0:01:17.4]} 24... Kb8 {[%clk 0:01:19.2]} 25. Nxd6
{[%clk 0:01:15.6]} 25... Be6 {[%clk 0:01:19.2]} 26. Rxe6 {[%clk 0:01:13.8]}
26... fxe6 {[%clk 0:01:17.8]} 27. Bf4 {[%clk 0:00:38.1]} 27... Rxd6 {[%clk
0:01:17]} 28. Qd4 {[%clk 0:00:38.4]} 28... Kc7 {[%clk 0:01:09.3]} 29. a4 {[%clk
0:00:20.1]} 29... Kd7 {[%clk 0:00:56.3]} 30. Bxd6 {[%clk 0:00:20.5]} 30... Qxd6
{[%clk 0:00:56.6]} 31. Qxg7+ {[%clk 0:00:21.2]} 31... Kc8 {[%clk 0:00:57.1]} 32.
Qd4 {[%clk 0:00:19.6]} 32... Qf8 {[%clk 0:00:55.8]} 33. f4 {[%clk 0:00:19.5]}
33... Qf5 {[%clk 0:00:55.3]} 34. Qh8+ {[%clk 0:00:17.9]} 34... Kd7 {[%clk
0:00:54.7]} 35. Qd4+ {[%clk 0:00:18.3]} 35... Kc8 {[%clk 0:00:54.5]} 36. Kd2
{[%clk 0:00:17.4]} 36... Qg4 {[%clk 0:00:52.4]} 37. Kc2 {[%clk 0:00:17.3]} 37...
Qe2+ {[%clk 0:00:50.7]} 38. Kb3 {[%clk 0:00:17.9]} 38... a5 {[%clk 0:00:46.5]}
39. Qc4 {[%clk 0:00:12.1]} 39... Qg4 {[%clk 0:00:44.3]} 40. Ka2 {[%clk
0:00:07.8]} 40... Kc7 {[%clk 0:00:42.5]} 41. Qd4 {[%clk 0:00:08]} 41... Kc8
{[%clk 0:00:40.2]} 42. Qe5 {[%clk 0:00:07.8]} 42... Kd8 {[%clk 0:00:32.2]} 43.
Qf6+ {[%clk 0:00:06.2]} 43... Kc8 {[%clk 0:00:32]} 44. g6 {[%clk 0:00:06.5]}
44... Qf3 {[%clk 0:00:30.7]} 45. Qxe6+ {[%clk 0:00:07]} 45... Kc7 {[%clk
0:00:30.5]} 46. f5 {[%clk 0:00:07.5]} 46... Qg2 {[%clk 0:00:28.2]} 47. Qe5+
{[%clk 0:00:05]} 47... Kb6 {[%clk 0:00:28.2]} 48. Qd4+ {[%clk 0:00:05.3]} 48...
Ka6 {[%clk 0:00:28.3]} 49. g7 {[%clk 0:00:05.7]} 49... b5 {[%clk 0:00:27.8]} 50.
axb5+ {[%clk 0:00:05.4]} 50... Kxb5 {[%clk 0:00:27.7]} 51. f6 {[%clk 0:00:05.6]}
51... Qg4 {[%clk 0:00:26.2]} 52. Qxg4 {[%clk 0:00:04.1]} 52... a4 {[%clk
0:00:27.1]} 53. g8=Q {[%clk 0:00:03]} 53... c5 {[%clk 0:00:28]} 54. Qd7+ {[%clk
0:00:02.4]} 54... Ka5 {[%clk 0:00:28.9]} 55. Qc4 {[%clk 0:00:02.8]} 55... Kb6
{[%clk 0:00:29.2]} 56. Qdb5+ {[%clk 0:00:03.7]} 56... Ka7 {[%clk 0:00:29.2]} 57.
Qcxc5+ {[%clk 0:00:04.5]} 57... Ka8 {[%clk 0:00:29.4]} 58. Qcc6+ {[%clk
0:00:05.3]} 58... Ka7 {[%clk 0:00:29.5]} 59. Qbb7# {[%clk 0:00:05.9]} 1-0

[Event "Early-Titled-Tuesday-Blitz-August-29-2023"]
[Site "Chess.com"]
[Date "2023.08.29"]
[Round "9"]
[White "ahkashefi2800"]
[Black "LangesNasenhaar"]
[Result "0-1"]
[WhiteElo "2580"]
[BlackElo "2491"]
[TimeControl "180+1"]
[EndTime "9:43:39 PDT"]
[Termination "LangesNasenhaar won on time"]

1. e4 {[%clk 0:03:00.9]} 1... g6 {[%clk 0:02:59.4]} 2. d4 {[%clk 0:02:59.6]}
2... Bg7 {[%clk 0:03:00]} 3. Nf3 {[%clk 0:02:59.5]} 3... c6 {[%clk 0:03:00.4]}
4. c4 {[%clk 0:02:58.3]} 4... d5 {[%clk 0:03:00]} 5. exd5 {[%clk 0:02:55.7]}
5... cxd5 {[%clk 0:02:59.9]} 6. Nc3 {[%clk 0:02:55.2]} 6... Nf6 {[%clk
0:02:58.2]} 7. cxd5 {[%clk 0:02:52.2]} 7... O-O {[%clk 0:02:55.7]} 8. Bc4 {[%clk
0:02:49.1]} 8... b5 {[%clk 0:02:45.5]} 9. Bxb5 {[%clk 0:02:39.3]} 9... Nxd5
{[%clk 0:02:44]} 10. O-O {[%clk 0:02:35.8]} 10... Bb7 {[%clk 0:02:29.1]} 11. Bc4
{[%clk 0:02:25.4]} 11... Nxc3 {[%clk 0:02:12.6]} 12. bxc3 {[%clk 0:02:26.3]}
12... Qc7 {[%clk 0:02:12.8]} 13. Qe2 {[%clk 0:01:47.8]} 13... Bxf3 {[%clk
0:01:59.5]} 14. Qxf3 {[%clk 0:01:41.6]} 14... Nc6 {[%clk 0:01:41.5]} 15. Bf4
{[%clk 0:01:34.8]} 15... e5 {[%clk 0:01:27.8]} 16. Bg3 {[%clk 0:01:06.4]} 16...
Na5 {[%clk 0:01:03.7]} 17. Bd5 {[%clk 0:00:56.8]} 17... Rad8 {[%clk 0:01:01.8]}
18. Rfe1 {[%clk 0:00:43]} 18... Qd7 {[%clk 0:00:48.6]} 19. Be4 {[%clk 0:00:24]}
19... exd4 {[%clk 0:00:46.2]} 20. cxd4 {[%clk 0:00:24.5]} 20... Qa4 {[%clk
0:00:12]} 21. Be5 {[%clk 0:00:16.9]} 21... Nc4 {[%clk 0:00:07.3]} 22. Bxg7
{[%clk 0:00:16.3]} 22... Kxg7 {[%clk 0:00:08.2]} 23. d5 {[%clk 0:00:14.9]} 23...
Nd6 {[%clk 0:00:06.7]} 24. Bd3 {[%clk 0:00:13.5]} 24... Kg8 {[%clk 0:00:05.9]}
25. Qg3 {[%clk 0:00:13.4]} 25... Qd4 {[%clk 0:00:05.5]} 26. Rad1 {[%clk
0:00:12.7]} 26... Qf6 {[%clk 0:00:05.5]} 27. Qe5 {[%clk 0:00:10.1]} 27... Qh4
{[%clk 0:00:04.6]} 28. Qg3 {[%clk 0:00:09.7]} 28... Qf6 {[%clk 0:00:04.5]} 29.
Qe5 {[%clk 0:00:09.3]} 29... Qh4 {[%clk 0:00:04.8]} 30. Bf1 {[%clk 0:00:06.4]}
30... Qh6 {[%clk 0:00:04.4]} 31. Qe3 {[%clk 0:00:05.6]} 31... Qg7 {[%clk
0:00:04.6]} 32. Qd4 {[%clk 0:00:04.5]} 32... Nf5 {[%clk 0:00:05.2]} 33. Qxg7+
{[%clk 0:00:03.9]} 33... Kxg7 {[%clk 0:00:06.1]} 34. f3 {[%clk 0:00:02.3]} 34...
Rd6 {[%clk 0:00:05.5]} 35. Kf2 {[%clk 0:00:02.7]} 35... Rfd8 {[%clk 0:00:04.8]}
36. Bc4 {[%clk 0:00:03.2]} 36... Kf6 {[%clk 0:00:04.1]} 37. Bb3 {[%clk
0:00:03.3]} 37... Ne7 {[%clk 0:00:04.3]} 38. Re4 {[%clk 0:00:02.1]} 38... Nf5
{[%clk 0:00:01.4]} 39. Re2 {[%clk 0:00:01.6]} 39... Rb6 {[%clk 0:00:02]} 40.
Red2 {[%clk 0:00:01.6]} 40... Nd6 {[%clk 0:00:02.9]} 41. Rc2 {[%clk 0:00:01.2]}
41... Rb4 {[%clk 0:00:03.4]} 42. Rc6 {[%clk 0:00:01.1]} 42... Rb6 {[%clk
0:00:04]} 43. g3 {[%clk 0:00:01.2]} 43... Rd7 {[%clk 0:00:02.7]} 0-1

[Event "Early-Titled-Tuesday-Blitz-August-29-2023"]
[Site "Chess.com"]
[Date "2023.08.29"]
[Round "9"]
[White "angryspacevoid"]
[Black "Druid24"]
[Result "1-0"]
[WhiteElo "2553"]
[BlackElo "2656"]
[TimeControl "180+1"]
[EndTime "9:43:42 PDT"]
[Termination "angryspacevoid won on time"]

1. e4 {[%clk 0:03:00.3]} 1... c6 {[%clk 0:02:59.7]} 2. d4 {[%clk 0:03:00]} 2...
d5 {[%clk 0:03:00]} 3. f3 {[%clk 0:03:00.2]} 3... e5 {[%clk 0:02:55]} 4. dxe5
{[%clk 0:02:52.8]} 4... Bc5 {[%clk 0:02:52.7]} 5. exd5 {[%clk 0:02:46.1]} 5...
Qb6 {[%clk 0:02:48.7]} 6. Bc4 {[%clk 0:02:20.5]} 6... Bxg1 {[%clk 0:02:43.8]} 7.
Qe2 {[%clk 0:02:20.3]} 7... Bc5 {[%clk 0:02:35.7]} 8. Nc3 {[%clk 0:02:16]} 8...
Ne7 {[%clk 0:02:10.3]} 9. d6 {[%clk 0:02:06.2]} 9... Nf5 {[%clk 0:02:08.9]} 10.
Bd2 {[%clk 0:02:04.3]} 10... Nd4 {[%clk 0:01:57.9]} 11. Qe4 {[%clk 0:01:51.9]}
11... Bf5 {[%clk 0:01:55.2]} 12. Qf4 {[%clk 0:01:50.9]} 12... Qxb2 {[%clk
0:01:49.6]} 13. Rc1 {[%clk 0:01:44]} 13... Nxc2+ {[%clk 0:01:35.7]} 14. Kd1
{[%clk 0:01:39.3]} 14... Nd4 {[%clk 0:01:35.7]} 15. Na4 {[%clk 0:01:32.6]} 15...
Bc2+ {[%clk 0:01:35.1]} 16. Ke1 {[%clk 0:01:30.1]} 16... Qxc1+ {[%clk
0:00:35.3]} 17. Bxc1 {[%clk 0:01:23.3]} 17... Bb4+ {[%clk 0:00:35.5]} 18. Bd2
{[%clk 0:01:21.5]} 18... Bxd2+ {[%clk 0:00:24.4]} 19. Kxd2 {[%clk 0:01:22.4]}
19... O-O {[%clk 0:00:19.6]} 20. Nc3 {[%clk 0:01:04.6]} 20... c5 {[%clk
0:00:17.1]} 21. h4 {[%clk 0:00:56.3]} 21... Nbc6 {[%clk 0:00:16.9]} 22. h5
{[%clk 0:00:55.7]} 22... h6 {[%clk 0:00:12.5]} 23. Nd5 {[%clk 0:00:49]} 23...
Rae8 {[%clk 0:00:06.8]} 24. Re1 {[%clk 0:00:47.5]} 24... Bh7 {[%clk 0:00:03.4]}
25. g4 {[%clk 0:00:43.5]} 25... b5 {[%clk 0:00:03.3]} 26. Bd3 {[%clk 0:00:41.1]}
26... Bxd3 {[%clk 0:00:02.6]} 27. Kxd3 {[%clk 0:00:42]} 27... Re6 {[%clk
0:00:02.1]} 28. Qg3 {[%clk 0:00:21.1]} 28... Rfe8 {[%clk 0:00:02.3]} 29. f4
{[%clk 0:00:21.7]} 29... f6 {[%clk 0:00:03]} 30. Nc7 {[%clk 0:00:21.5]} 30...
fxe5 {[%clk 0:00:02.8]} 31. Nxe8 {[%clk 0:00:21]} 31... Rxe8 {[%clk 0:00:02.3]}
32. fxe5 {[%clk 0:00:20.1]} 32... Rf8 {[%clk 0:00:02.4]} 33. Re3 {[%clk
0:00:17.3]} 33... c4+ {[%clk 0:00:02.7]} 34. Ke4 {[%clk 0:00:17.1]} 34... Ne6
{[%clk 0:00:01.9]} 35. Kd5 {[%clk 0:00:17.5]} 35... Ncd8 {[%clk 0:00:02.4]} 36.
Rf3 {[%clk 0:00:17.3]} 36... Re8 {[%clk 0:00:03]} 37. d7 {[%clk 0:00:16.8]}
37... Re7 {[%clk 0:00:03.2]} 38. Kd6 {[%clk 0:00:17.4]} 38... Rf7 {[%clk
0:00:02.1]} 39. Rxf7 {[%clk 0:00:17.4]} 39... Kxf7 {[%clk 0:00:03]} 40. Qf3+
{[%clk 0:00:17.6]} 40... Kg8 {[%clk 0:00:03.7]} 41. Ke7 {[%clk 0:00:17.4]} 41...
b4 {[%clk 0:00:02.3]} 42. Qd5 {[%clk 0:00:17.3]} 42... c3 {[%clk 0:00:02.5]} 43.
Qb3 {[%clk 0:00:17.6]} 43... Kh7 {[%clk 0:00:01.8]} 44. a3 {[%clk 0:00:17.5]}
44... a5 {[%clk 0:00:01.5]} 45. axb4 {[%clk 0:00:17.5]} 45... axb4 {[%clk
0:00:02.4]} 46. Qxb4 {[%clk 0:00:18.1]} 46... Nc6+ {[%clk 0:00:03]} 47. Kxe6
{[%clk 0:00:17.1]} 47... c2 {[%clk 0:00:02.2]} 48. Qe4+ {[%clk 0:00:16.6]} 48...
Kh8 {[%clk 0:00:01.9]} 49. Qxc6 {[%clk 0:00:16.1]} 49... c1=Q {[%clk 0:00:01.5]}
50. d8=Q+ {[%clk 0:00:13.3]} 50... Kh7 {[%clk 0:00:02.4]} 51. Qxc1 {[%clk
0:00:13.2]} 1-0

[Event "Early-Titled-Tuesday-Blitz-August-29-2023"]
[Site "Chess.com"]
[Date "2023.08.29"]
[Round "9"]
[White "workhard91"]
[Black "Let_it_be_1"]
[Result "0-1"]
[WhiteElo "2451"]
[BlackElo "2624"]
[TimeControl "180+1"]
[EndTime "9:43:45 PDT"]
[Termination "Let_it_be_1 won on time"]

1. e4 {[%clk 0:03:00.9]} 1... e6 {[%clk 0:02:59.9]} 2. d4 {[%clk 0:03:00.9]}
2... d5 {[%clk 0:03:00.6]} 3. Nc3 {[%clk 0:03:01.6]} 3... Nf6 {[%clk 0:03:00.5]}
4. e5 {[%clk 0:03:01.9]} 4... Ne4 {[%clk 0:03:00.8]} 5. Nxe4 {[%clk 0:02:35.2]}
5... dxe4 {[%clk 0:03:01.7]} 6. Ne2 {[%clk 0:02:34.3]} 6... c5 {[%clk
0:02:59.6]} 7. Be3 {[%clk 0:02:34.4]} 7... Nc6 {[%clk 0:02:53.6]} 8. dxc5 {[%clk
0:02:29.6]} 8... Qc7 {[%clk 0:02:48.8]} 9. c3 {[%clk 0:02:08.9]} 9... Nxe5
{[%clk 0:02:44.9]} 10. Ng3 {[%clk 0:02:05.2]} 10... Bxc5 {[%clk 0:02:37]} 11.
Bxc5 {[%clk 0:02:05.3]} 11... Qxc5 {[%clk 0:02:37]} 12. Nxe4 {[%clk 0:02:04.9]}
12... Qb6 {[%clk 0:02:34.2]} 13. Qd6 {[%clk 0:01:49.9]} 13... Qxd6 {[%clk
0:02:23]} 14. Nxd6+ {[%clk 0:01:50.8]} 14... Ke7 {[%clk 0:02:23.4]} 15. Nxc8+
{[%clk 0:01:44.4]} 15... Raxc8 {[%clk 0:02:23.4]} 16. O-O-O {[%clk 0:01:43.6]}
16... Ng4 {[%clk 0:02:08.7]} 17. Bb5 {[%clk 0:01:24.6]} 17... Rhd8 {[%clk
0:02:07.1]} 18. Rxd8 {[%clk 0:01:22.6]} 18... Rxd8 {[%clk 0:02:06.7]} 19. f3
{[%clk 0:01:10.8]} 19... Ne3 {[%clk 0:02:01.2]} 20. g3 {[%clk 0:01:08.8]} 20...
a6 {[%clk 0:01:53.5]} 21. Be2 {[%clk 0:01:08.7]} 21... g5 {[%clk 0:01:46.9]} 22.
Re1 {[%clk 0:01:08.8]} 22... Rd6 {[%clk 0:01:33.6]} 23. a3 {[%clk 0:00:47.9]}
23... Nf5 {[%clk 0:01:19.2]} 24. Kc2 {[%clk 0:00:48.1]} 24... h5 {[%clk
0:01:16.7]} 25. Bd3 {[%clk 0:00:47.4]} 25... Kf6 {[%clk 0:01:14.4]} 26. Re4
{[%clk 0:00:36.6]} 26... h4 {[%clk 0:01:09.6]} 27. g4 {[%clk 0:00:37]} 27... Ne7
{[%clk 0:01:06.5]} 28. f4 {[%clk 0:00:20]} 28... Nd5 {[%clk 0:01:00.4]} 29.
fxg5+ {[%clk 0:00:15.9]} 29... Kxg5 {[%clk 0:01:00.4]} 30. h3 {[%clk 0:00:16.5]}
30... Nf4 {[%clk 0:00:53.8]} 31. Re5+ {[%clk 0:00:16.2]} 31... f5 {[%clk
0:00:53.4]} 32. Bxf5 {[%clk 0:00:15]} 32... Nxh3 {[%clk 0:00:44.1]} 33. Bxe6+
{[%clk 0:00:13]} 33... Kf4 {[%clk 0:00:44.3]} 34. Rf5+ {[%clk 0:00:11.3]} 34...
Kg3 {[%clk 0:00:44.4]} 35. Bd5 {[%clk 0:00:09.9]} 35... Nf4 {[%clk 0:00:42.1]}
36. Bxb7 {[%clk 0:00:09.6]} 36... h3 {[%clk 0:00:41.7]} 37. g5 {[%clk
0:00:08.4]} 37... h2 {[%clk 0:00:41.2]} 38. Rf8 {[%clk 0:00:06.3]} 38... Rb6
{[%clk 0:00:37.1]} 39. Ba8 {[%clk 0:00:05.9]} 39... Rg6 {[%clk 0:00:33.3]} 40.
Rh8 {[%clk 0:00:05.8]} 40... Rxg5 {[%clk 0:00:33.1]} 41. c4 {[%clk 0:00:06.3]}
41... Ng2 {[%clk 0:00:27.2]} 42. b4 {[%clk 0:00:05.7]} 42... Ne3+ {[%clk
0:00:20.5]} 43. Kb3 {[%clk 0:00:05.8]} 43... Rg4 {[%clk 0:00:20.5]} 44. c5
{[%clk 0:00:05.3]} 44... Nc4 {[%clk 0:00:19.1]} 45. Rh7 {[%clk 0:00:04.2]} 45...
Ne5 {[%clk 0:00:17.8]} 46. a4 {[%clk 0:00:03.1]} 46... Rh4 {[%clk 0:00:17.3]}
47. Rg7+ {[%clk 0:00:02.5]} 47... Kf2 {[%clk 0:00:17]} 48. b5 {[%clk 0:00:03.1]}
48... axb5 {[%clk 0:00:16.4]} 49. axb5 {[%clk 0:00:03.2]} 49... Nf3 {[%clk
0:00:16.8]} 50. Rf7 {[%clk 0:00:03.6]} 50... Rh3 {[%clk 0:00:15.4]} 0-1

[Event "Early-Titled-Tuesday-Blitz-August-29-2023"]
[Site "Chess.com"]
[Date "2023.08.29"]
[Round "9"]
[White "FairChess_on_YouTube"]
[Black "amintabatabaei"]
[Result "0-1"]
[WhiteElo "3045"]
[BlackElo "2971"]
[TimeControl "180+1"]
[EndTime "9:43:46 PDT"]
[Termination "amintabatabaei won on time"]

1. d4 {[%clk 0:03:00.9]} 1... Nf6 {[%clk 0:02:57.5]} 2. c4 {[%clk 0:03:00.2]}
2... e6 {[%clk 0:02:57.2]} 3. Nf3 {[%clk 0:03:00.8]} 3... d5 {[%clk 0:02:56.2]}
4. Bg5 {[%clk 0:03:00.7]} 4... h6 {[%clk 0:02:45.4]} 5. Bxf6 {[%clk 0:03:00]}
5... Qxf6 {[%clk 0:02:46.3]} 6. e3 {[%clk 0:03:00.4]} 6... c6 {[%clk 0:02:39.5]}
7. Nbd2 {[%clk 0:02:57.8]} 7... Nd7 {[%clk 0:02:31]} 8. Bd3 {[%clk 0:02:54.2]}
8... g6 {[%clk 0:02:27.7]} 9. O-O {[%clk 0:02:53]} 9... Bg7 {[%clk 0:02:27.8]}
10. e4 {[%clk 0:02:53]} 10... O-O {[%clk 0:02:28.1]} 11. e5 {[%clk 0:02:50.9]}
11... Qe7 {[%clk 0:02:25.6]} 12. c5 {[%clk 0:02:50.7]} 12... b6 {[%clk
0:02:09.1]} 13. b4 {[%clk 0:02:48.5]} 13... a5 {[%clk 0:02:09.8]} 14. a3 {[%clk
0:02:44.2]} 14... g5 {[%clk 0:02:10.4]} 15. h3 {[%clk 0:02:31]} 15... f6 {[%clk
0:01:40.8]} 16. exf6 {[%clk 0:02:30.8]} 16... Qxf6 {[%clk 0:01:41.7]} 17. Re1
{[%clk 0:02:09.5]} 17... axb4 {[%clk 0:01:41.5]} 18. axb4 {[%clk 0:02:01.6]}
18... Rxa1 {[%clk 0:01:41.2]} 19. Qxa1 {[%clk 0:02:02.5]} 19... bxc5 {[%clk
0:01:41.9]} 20. bxc5 {[%clk 0:01:59.7]} 20... Nxc5 {[%clk 0:01:41.1]} 21. Bc2
{[%clk 0:01:57.3]} 21... h5 {[%clk 0:01:23.2]} 22. Qa8 {[%clk 0:01:15.3]} 22...
g4 {[%clk 0:01:07.7]} 23. hxg4 {[%clk 0:00:58.4]} 23... hxg4 {[%clk 0:01:08.6]}
24. dxc5 {[%clk 0:00:58.9]} 24... gxf3 {[%clk 0:01:09.1]} 25. Nxf3 {[%clk
0:00:59.6]} 25... Qc3 {[%clk 0:00:38.3]} 26. Re2 {[%clk 0:00:41.6]} 26... Qxc5
{[%clk 0:00:37.7]} 27. Qb8 {[%clk 0:00:23.2]} 27... e5 {[%clk 0:00:29.5]} 28.
Nxe5 {[%clk 0:00:12.6]} 28... Bg4 {[%clk 0:00:28.8]} 29. Qxf8+ {[%clk
0:00:10.9]} 29... Bxf8 {[%clk 0:00:19.3]} 30. Nxg4 {[%clk 0:00:11.8]} 30... Qd4
{[%clk 0:00:19.7]} 31. Ne5 {[%clk 0:00:08.9]} 31... Bd6 {[%clk 0:00:15.7]} 32.
Nf3 {[%clk 0:00:06.2]} 32... Qc3 {[%clk 0:00:10.9]} 33. Bf5 {[%clk 0:00:04.3]}
33... d4 {[%clk 0:00:06.8]} 34. Re1 {[%clk 0:00:03.9]} 34... c5 {[%clk 0:00:04]}
35. Rd1 {[%clk 0:00:04.2]} 35... Bf8 {[%clk 0:00:03.4]} 36. Be4 {[%clk
0:00:04.4]} 36... Bg7 {[%clk 0:00:03.3]} 37. g3 {[%clk 0:00:05]} 37... c4 {[%clk
0:00:02.4]} 38. Bd5+ {[%clk 0:00:04.4]} 38... Kf8 {[%clk 0:00:02.7]} 39. Nd2
{[%clk 0:00:04.8]} 39... Qc2 {[%clk 0:00:02.7]} 40. Bf3 {[%clk 0:00:05.4]} 40...
d3 {[%clk 0:00:02.5]} 41. Ne4 {[%clk 0:00:05.4]} 41... c3 {[%clk 0:00:03.1]} 42.
Kg2 {[%clk 0:00:04]} 42... Qxd1 {[%clk 0:00:03.4]} 43. Bxd1 {[%clk 0:00:03.4]}
43... c2 {[%clk 0:00:04.1]} 0-1